[Event "Hungarian Youth-ch II 2024"]
[Site "Szolnok"]
[Date "2024.04.02"]
[Round "3.8"]
[White "Vasarhelyi, Szurina"]
[Black "Farkas, Roza"]
[Result "1-0"]
[ECO "C02"]
[WhiteElo "1446"]
[BlackElo "1476"]
[Annotator "NA RC"]
[PlyCount "89"]
[EventDate "2024.03.31"]
[EventType "swiss"]
[EventCountry "HUN"]
[SourceTitle "playchess.com"]
[Source "ChessBase"]
[SourceQuality "1"]
[TimeControl "5400+30"]

1. e4 {[%emt 0:00:01]} e6 {[%emt 0:00:11]} 2. d4 {[%emt 0:00:13]} d5 {[%emt 0:00:43]} 3. e5 {[%emt 0:02:07]} c5 {[%emt 0:00:52]} 4. c3 {[%emt 0:01:45]} Nc6 {[%emt 0:01:48]} 5. Nf3 {[%emt 0:01:30]} Qb6 {[%emt 0:02:31]} 6. a3 {[%emt 0:04:25]} cxd4 {[%emt 0:03:52]} 7. cxd4 {[%emt 0:02:19]} Nge7 {[%emt 0:01:37]} 8. Bd3 {[%emt 0:04:52]} Bd7 {[%emt 0:04:00]} 9. Bc2 {[%emt 0:05:14]} Nf5 {[%emt 0:04:31]} 10. Bxf5 {[%emt 0:03:29]} exf5 {[%emt 0:00:44]} 11. O-O {[%emt 0:02:35]} Be7 {[%emt 0:02:13]} 12. Nc3 {[%emt 0:03:48]} Be6 {[%emt 0:03:06]} 13. Rb1 {[%emt 0:02:17]} O-O {[%emt 0:03:57]} 14. Be3 {[%emt 0:06:04]} Rac8 {[%emt 0:04:28]} 15. Ne2 {[%emt 0:04:26]} f6 {[%emt 0:04:40]} 16. h3 {[%emt 0:05:42]} Na5 {[%emt 0:03:57]} 17. Nd2 {[%emt 0:02:52]} Nc4 {[%emt 0:02:29]} 18. Nxc4 {[%emt 0:00:36]} Rxc4 {[%emt 0:00:38]} 19. Qd2 {[%emt 0:01:25]} fxe5 {[%emt 0:01:33]} 20. dxe5 {[%emt 0:00:51]} Bc5 {[%emt 0:04:52]} 21. Bxc5 {[%emt 0:01:45]} Qxc5 {[%emt 0:00:40]} 22. Rbc1 Qb5 {[%emt 0:02:51]} 23. Rxc4 {[%emt 0:05:52]} dxc4 {[%emt 0:02:12]} 24. Qd6 {[%emt 0:01:05]} Qd5 {[%emt 0:02:55]} 25. Rd1 {[%emt 0:00:44]} Qxd6 {[%emt 0:01:46]} 26. Rxd6 {[%emt 0:00:23]} Re8 {[%emt 0:04:08]} 27. Nd4 {[%emt 0:01:05]} Kf7 {[%emt 0:01:32]} 28. Nxe6 {[%emt 0:00:51]} Rxe6 {[%emt 0:02:03]} 29. Rxe6 {[%emt 0:00:26]} Kxe6 {[%emt 0:00:14]} 30. f4 {[%emt 0:00:02]} h6 {[%emt 0:01:17]} 31. Kf2 {[%emt 0:00:26]} g5 {[%emt 0:00:48]} 32. g3 {[%emt 0:00:43]} a5 {[%emt 0:00:37]} 33. Ke3 {[%emt 0:00:05]} gxf4+ {[%emt 0:01:24]} 34. gxf4 {[%emt 0:00:25]} Kd5 {[%emt 0:00:50]} 35. Kd2 {[%emt 0:00:44]} b6 {[%emt 0:01:11]} 36. Kc3 {[%emt 0:00:07]} b5 {[%emt 0:01:22]} 37. b3 {[%emt 0:01:24]} h5 {[%emt 0:01:39]} 38. bxc4+ {[%emt 0:01:36]} bxc4 {[%emt 0:01:02]} 39. e6 {[%emt 0:01:08]} Kxe6 {[%emt 0:00:19]} 40. Kxc4 {[%emt 0:00:07]} Kd6 {[%emt 0:00:20]} 41. Kd4 {[%emt 0:00:36]} a4 {[%emt 0:00:49]} 42. h4 {[%emt 0:00:28]} Ke6 {[%emt 0:00:42]} 43. Kc5 {[%emt 0:00:01]} Kd7 {[%emt 0:00:48]} 44. Kd5 {[%emt 0:00:07]} Ke7 {[%emt 0:00:22]} 45. Ke5 {[%emt 0:00:09]} 1-0

[Event "Hungarian Youth-ch II 2024"]
[Site "Szolnok"]
[Date "2024.04.03"]
[Round "4.1"]
[White "Balazs, Szabina Zoe"]
[Black "Kiss, Inez"]
[Result "1-0"]
[ECO "B12"]
[WhiteElo "1756"]
[BlackElo "1806"]
[Annotator "NA RC"]
[PlyCount "93"]
[EventDate "2024.03.31"]
[EventType "swiss"]
[EventCountry "HUN"]
[SourceTitle "playchess.com"]
[Source "ChessBase"]
[SourceQuality "1"]
[TimeControl "5400+30"]

1. e4 {[%emt 0:00:01]} c6 {[%emt 0:01:16]} 2. d4 {[%emt 0:00:15]} d5 {[%emt 0:00:09]} 3. e5 {[%emt 0:00:08]} c5 {[%emt 0:00:41]} 4. c3 {[%emt 0:00:24]} Nc6 {[%emt 0:00:06]} 5. Nf3 {[%emt 0:00:48]} cxd4 {[%emt 0:00:08]} 6. cxd4 {[%emt 0:00:08]} Bg4 {[%emt 0:00:08]} 7. Be2 {[%emt 0:01:09]} e6 {[%emt 0:00:07]} 8. Be3 {[%emt 0:02:44]} Nge7 {[%emt 0:00:12]} 9. Nbd2 {[%emt 0:04:10]} Nf5 {[%emt 0:00:18]} 10. O-O {[%emt 0:03:29]} Be7 {[%emt 0:00:13]} 11. h3 {[%emt 0:01:18]} Bxf3 {[%emt 0:02:18]} 12. Nxf3 {[%emt 0:01:33]} O-O {[%emt 0:02:05]} 13. Bd3 {[%emt 0:12:32]} f6 {[%emt 0:11:11]} 14. Bxf5 {[%emt 0:14:06]} exf5 {[%emt 0:00:05]} 15. Bf4 {[%emt 0:08:26]} Qb6 {[%emt 0:08:18]} 16. Qd3 {[%emt 0:09:24]} g6 {[%emt 0:24:01]} 17. Rfd1 {[%emt 0:07:02]} Na5 {[%emt 0:06:01]} 18. b3 {[%emt 0:02:58]} Rac8 {[%emt 0:02:57]} 19. exf6 {[%emt 0:10:41]} Bxf6 {[%emt 0:13:16]} 20. Be5 {[%emt 0:01:23]} Bxe5 {[%emt 0:03:30]} 21. dxe5 {[%emt 0:04:38]} Rc5 {[%emt 0:06:54]} 22. Nd4 {[%emt 0:03:34]} Nc6 {[%emt 0:05:45]} 23. Ne6 {[%emt 0:06:44]} Nb4 {[%emt 0:05:07]} 24. Qd4 {[%emt 0:00:54]} Rfc8 {[%emt 0:03:10]} 25. Nxc5 {[%emt 0:00:07]} Rxc5 {[%emt 0:01:06]} 26. Qh4 {[%emt 0:03:13]} Nc6 {[%emt 0:02:50]} 27. Qf6 {[%emt 0:01:07]} Rc2 {[%emt 0:00:36]} 28. Qe6+ {[%emt 0:00:45]} Kf8 {[%emt 0:00:31]} 29. Qxd5 {[%emt 0:00:32]} Rxf2 {[%emt 0:00:49]} 30. Kh1 {[%emt 0:00:17]} Ne7 {[%emt 0:00:52]} 31. Qc4 {[%emt 0:00:56]} Qe3 {[%emt 0:00:41]} 32. Rd8+ {[%emt 0:00:10]} Kg7 {[%emt 0:00:01]} 33. e6 {[%emt 0:00:47]} Qg3 {[%emt 0:00:57]} 34. Qd4+ {[%emt 0:00:28]} Kh6 {[%emt 0:00:01]} 35. Rg1 {[%emt 0:00:15]} Nc6 {[%emt 0:00:29]} 36. Qd6 {[%emt 0:00:30]} f4 {[%emt 0:00:26]} 37. Rd7 {[%emt 0:00:26]} Qe3 {[%emt 0:01:04]} 38. Qf8+ {[%emt 0:00:49]} Kh5 {[%emt 0:00:05]} 39. Rxh7+ {[%emt 0:00:13]} Kg5 {[%emt 0:00:11]} 40. h4+ {[%emt 0:00:39]} Kg4 {[%emt 0:00:01]} 41. Qf6 {[%emt 0:00:17]} f3 {[%emt 0:01:02]} 42. Qxg6+ {[%emt 0:00:33]} Kf4 {[%emt 0:00:08]} 43. Qg5+ {[%emt 0:00:48]} Ke4 {[%emt 0:00:05]} 44. Qxe3+ {[%emt 0:00:17]} Kxe3 {[%emt 0:00:00]} 45. e7 {[%emt 0:00:19]} fxg2+ {[%emt 0:00:27]} 46. Rxg2 {[%emt 0:00:12]} Rf1+ {[%emt 0:00:24]} 47. Rg1 {[%emt 0:00:13]} 1-0

[Event "Hungarian Youth-ch II 2024"]
[Site "Szolnok"]
[Date "2024.04.03"]
[Round "4.2"]
[White "Kincses, Emma"]
[Black "Hangyal, Dora"]
[Result "1/2-1/2"]
[ECO "D02"]
[WhiteElo "1678"]
[BlackElo "1704"]
[Annotator "NA RC"]
[PlyCount "117"]
[EventDate "2024.03.31"]
[EventType "swiss"]
[EventCountry "HUN"]
[SourceTitle "playchess.com"]
[Source "ChessBase"]
[SourceQuality "1"]
[TimeControl "5400+30"]

1. d4 {[%emt 0:00:01]} d5 {[%emt 0:00:06]} 2. Nf3 {[%emt 0:00:03]} Nf6 {[%emt 0:00:06]} 3. g3 {[%emt 0:00:05]} e6 {[%emt 0:00:06]} 4. Bg2 {[%emt 0:00:06]} Be7 {[%emt 0:00:09]} 5. O-O {[%emt 0:00:07]} O-O {[%emt 0:00:04]} 6. b3 {[%emt 0:00:05]} c5 {[%emt 0:00:18]} 7. Bb2 {[%emt 0:00:09]} Nbd7 {[%emt 0:01:23]} 8. Nbd2 {[%emt 0:03:42]} Qc7 {[%emt 0:00:46]} 9. c4 {[%emt 0:05:22]} b6 {[%emt 0:01:28]} 10. Rc1 {[%emt 0:02:06]} Qb8 {[%emt 0:05:26]} 11. Ne5 {[%emt 0:07:28]} Bb7 {[%emt 0:10:13]} 12. Nxd7 {[%emt 0:07:29]} Nxd7 {[%emt 0:04:21]} 13. cxd5 {[%emt 0:03:03]} Bxd5 {[%emt 0:00:11]} 14. e4 {[%emt 0:00:14]} Bb7 {[%emt 0:00:57]} 15. Nc4 {[%emt 0:01:14]} f5 {[%emt 0:02:11]} 16. d5 {[%emt 0:06:21]} exd5 {[%emt 0:04:22]} 17. exd5 {[%emt 0:00:23]} Rd8 {[%emt 0:00:58]} 18. Qh5 {[%emt 0:03:51]} f4 {[%emt 0:11:11]} 19. Be5 {[%emt 0:12:54]} Nxe5 {[%emt 0:04:52]} 20. Nxe5 {[%emt 0:00:47]} g6 {[%emt 0:01:01]} 21. Qe2 {[%emt 0:00:23]} Re8 {[%emt 0:01:12]} 22. Qc4 {[%emt 0:09:19]} Bd6 {[%emt 0:08:39]} 23. Nd3 {[%emt 0:17:03]} a5 {[%emt 0:02:44]} 24. Rfe1 {[%emt 0:02:36]} Ba6 {[%emt 0:01:13]} 25. Qc3 {[%emt 0:00:19]} fxg3 {[%emt 0:02:38]} 26. hxg3 {[%emt 0:00:28]} Rxe1+ {[%emt 0:03:47]} 27. Nxe1 {[%emt 0:01:29]} Be5 {[%emt 0:02:00]} 28. Qe3 {[%emt 0:01:43]} Qd6 {[%emt 0:00:35]} 29. Nf3 {[%emt 0:01:12]} Re8 {[%emt 0:05:04]} 30. Re1 {[%emt 0:01:35]} Qxd5 {[%emt 0:10:29]} 31. Nxe5 {[%emt 0:01:02]} Qd6 {[%emt 0:01:15]} 32. Qf4 {[%emt 0:01:24]} Rf8 {[%emt 0:00:49]} 33. Qe4 {[%emt 0:01:26]} Rd8 {[%emt 0:09:28]} 34. Nf3 {[%emt 0:02:30]} Kg7 {[%emt 0:04:09]} 35. Qe7+ {[%emt 0:00:45]} Qxe7 {[%emt 0:00:52]} 36. Rxe7+ {[%emt 0:00:07]} Kf6 {[%emt 0:00:07]} 37. Rxh7 {[%emt 0:00:34]} Rd1+ {[%emt 0:00:06]} 38. Kh2 {[%emt 0:00:15]} Ra1 {[%emt 0:00:04]} 39. Rh4 {[%emt 0:00:35]} Rxa2 {[%emt 0:00:21]} 40. Rf4+ {[%emt 0:00:15]} Kg7 {[%emt 0:00:16]} 41. Ne5 {[%emt 0:01:13]} Bc8 {[%emt 0:00:57]} 42. Rf7+ {[%emt 0:00:49]} Kh6 {[%emt 0:00:52]} 43. Rf6 {[%emt 0:00:50]} Bf5 {[%emt 0:00:28]} 44. f3 {[%emt 0:02:31]} b5 {[%emt 0:01:20]} 45. Rb6 {[%emt 0:01:32]} b4 {[%emt 0:00:17]} 46. Rb5 {[%emt 0:00:41]} a4 {[%emt 0:00:15]} 47. bxa4 {[%emt 0:00:55]} Rxa4 {[%emt 0:00:06]} 48. Rxc5 {[%emt 0:00:25]} b3 {[%emt 0:02:08]} 49. Rb5 {[%emt 0:00:22]} Bc2 {[%emt 0:00:13]} 50. Ng4+ {[%emt 0:00:14]} Kg7 {[%emt 0:00:23]} 51. Ne3 {[%emt 0:00:31]} Ra1 {[%emt 0:00:39]} 52. f4 {[%emt 0:01:37]} Re1 {[%emt 0:00:50]} 53. Nc4 {[%emt 0:01:00]} Re2 {[%emt 0:00:24]} 54. Kg1 {[%emt 0:00:47]} Bd3 {[%emt 0:00:17]} 55. Rb7+ {[%emt 0:00:16]} Kf6 {[%emt 0:00:44]} 56. Rb6+ {[%emt 0:00:18]} Kg7 {[%emt 0:00:12]} 57. Rxb3 {[%emt 0:00:54]} Bxc4 {[%emt 0:00:08]} 58. Rc3 {[%emt 0:01:22]} Be6 {[%emt 0:00:50]} 59. Rc7+ {[%emt 0:00:33]} 1/2-1/2

[Event "Hungarian Youth-ch II 2024"]
[Site "Szolnok"]
[Date "2024.04.03"]
[Round "4.4"]
[White "Hangyal, Anna"]
[Black "Illes-Nagy, Nora"]
[Result "1-0"]
[ECO "B47"]
[WhiteElo "1719"]
[BlackElo "1757"]
[Annotator "NA RC"]
[PlyCount "162"]
[EventDate "2024.03.31"]
[EventType "swiss"]
[EventCountry "HUN"]
[SourceTitle "playchess.com"]
[Source "ChessBase"]
[SourceQuality "1"]
[TimeControl "5400+30"]

1. e4 {[%emt 0:00:04]} c5 {[%emt 0:00:06]} 2. Nf3 {[%emt 0:00:07]} e6 {[%emt 0:00:07]} 3. d4 {[%emt 0:00:06]} cxd4 {[%emt 0:00:07]} 4. Nxd4 {[%emt 0:00:09]} Nc6 {[%emt 0:00:14]} 5. Nc3 {[%emt 0:00:14]} Qc7 {[%emt 0:00:09]} 6. Qd3 {[%emt 0:00:09]} a6 {[%emt 0:01:38]} 7. Nxc6 {[%emt 0:00:09]} bxc6 {[%emt 0:01:09]} 8. Qg3 {[%emt 0:00:11]} Qxg3 {[%emt 0:01:53]} 9. hxg3 {[%emt 0:00:06]} Rb8 {[%emt 0:06:29]} 10. b3 {[%emt 0:02:02]} Bb4 {[%emt 0:02:35]} 11. Bd2 {[%emt 0:00:13]} Ba3 {[%emt 0:01:42]} 12. Rd1 {[%emt 0:04:02]} d5 {[%emt 0:03:34]} 13. g4 {[%emt 0:01:00]} Nf6 {[%emt 0:04:24]} 14. g5 {[%emt 0:00:09]} Nxe4 {[%emt 0:01:58]} 15. Nxe4 {[%emt 0:00:08]} dxe4 {[%emt 0:00:05]} 16. Rh4 {[%emt 0:00:15]} O-O {[%emt 0:07:02]} 17. Rxe4 {[%emt 0:00:17]} Be7 {[%emt 0:02:01]} 18. Bd3 {[%emt 0:01:57]} f6 {[%emt 0:16:46]} 19. gxf6 {[%emt 0:04:09]} Bxf6 {[%emt 0:00:55]} 20. Bc4 {[%emt 0:00:22]} Re8 {[%emt 0:01:18]} 21. Bf4 {[%emt 0:00:21]} Ra8 {[%emt 0:01:15]} 22. Rd6 {[%emt 0:00:31]} Kf7 {[%emt 0:01:56]} 23. Rxc6 {[%emt 0:01:27]} Re7 {[%emt 0:01:16]} 24. Rd6 {[%emt 0:00:53]} Bc3+ {[%emt 0:00:49]} 25. Ke2 {[%emt 0:00:55]} Bb4 {[%emt 0:00:57]} 26. Rd3 {[%emt 0:03:28]} a5 {[%emt 0:03:59]} 27. Bg5 {[%emt 0:01:07]} Re8 {[%emt 0:01:05]} 28. Bb5 {[%emt 0:00:17]} Rf8 {[%emt 0:01:02]} 29. c3 {[%emt 0:02:44]} Bc5 {[%emt 0:01:10]} 30. Re5 {[%emt 0:03:06]} Be7 {[%emt 0:01:35]} 31. Rf3+ {[%emt 0:00:10]} Bf6 {[%emt 0:00:04]} 32. Rc5 {[%emt 0:01:09]} Ra7 {[%emt 0:02:13]} 33. Be3 {[%emt 0:01:52]} Ba6 {[%emt 0:02:42]} 34. Bxa6 {[%emt 0:01:21]} Rxa6 {[%emt 0:00:05]} 35. Rc7+ {[%emt 0:00:08]} Kg8 {[%emt 0:00:40]} 36. Bd4 {[%emt 0:01:35]} Bxd4 {[%emt 0:01:07]} 37. cxd4 {[%emt 0:00:30]} Rxf3 {[%emt 0:01:41]} 38. Kxf3 {[%emt 0:00:06]} a4 {[%emt 0:01:48]} 39. Ke4 {[%emt 0:02:30]} axb3 {[%emt 0:00:11]} 40. axb3 {[%emt 0:00:13]} Rb6 {[%emt 0:00:54]} 41. Ke5 {[%emt 0:01:58]} Kf8 {[%emt 0:02:12]} 42. g3 {[%emt 0:03:14]} Rxb3 {[%emt 0:00:59]} 43. Kxe6 {[%emt 0:00:12]} Rb6+ {[%emt 0:00:13]} 44. Ke5 {[%emt 0:00:09]} h6 {[%emt 0:03:14]} 45. d5 {[%emt 0:00:34]} Rb8 {[%emt 0:01:18]} 46. d6 {[%emt 0:01:40]} Re8+ {[%emt 0:01:09]} 47. Kf5 {[%emt 0:00:49]} Rd8 {[%emt 0:01:25]} 48. d7 {[%emt 0:00:18]} Kf7 {[%emt 0:00:29]} 49. f4 {[%emt 0:01:03]} g6+ {[%emt 0:00:36]} 50. Ke5 {[%emt 0:00:05]} Ke7 {[%emt 0:00:48]} 51. Ra7 {[%emt 0:00:28]} Rb8 {[%emt 0:03:56]} 52. Ra6 {[%emt 0:02:21]} Kxd7 {[%emt 0:01:15]} 53. Rxg6 {[%emt 0:00:15]} h5 {[%emt 0:01:11]} 54. Rg7+ {[%emt 0:00:27]} Kc6 {[%emt 0:00:12]} 55. f5 {[%emt 0:00:26]} Re8+ {[%emt 0:01:18]} 56. Kf4 {[%emt 0:00:43]} Kd5 {[%emt 0:01:29]} 57. Kg5 {[%emt 0:00:27]} Ke5 {[%emt 0:00:33]} 58. f6 {[%emt 0:01:10]} Rf8 {[%emt 0:01:31]} 59. Re7+ {[%emt 0:00:23]} Kd6 {[%emt 0:00:17]} 60. Kg6 {[%emt 0:01:12]} Rg8+ {[%emt 0:00:48]} 61. Rg7 {[%emt 0:01:09]} Rf8 {[%emt 0:00:54]} 62. Kxh5 {[%emt 0:02:57]} Ke6 {[%emt 0:01:51]} 63. Rg6 {[%emt 0:00:46]} Kf5 {[%emt 0:01:58]} 64. g4+ {[%emt 0:00:38]} Ke6 {[%emt 0:00:38]} 65. Kh6 {[%emt 0:02:08]} Kf7 {[%emt 0:00:22]} 66. Kh7 {[%emt 0:01:22]} Ra8 {[%emt 0:01:58]} 67. g5 {[%emt 0:00:46]} Ra1 {[%emt 0:00:28]} 68. Rg7+ {[%emt 0:00:48]} Kf8 {[%emt 0:00:21]} 69. f7 {[%emt 0:00:34]} Rf1 {[%emt 0:00:53]} 70. Rg8+ {[%emt 0:01:31]} Kxf7 {[%emt 0:00:07]} 71. g6+ {[%emt 0:00:12]} Ke7 {[%emt 0:00:17]} 72. Ra8 {[%emt 0:00:24]} Rh1+ {[%emt 0:00:29]} 73. Kg8 {[%emt 0:00:14]} Kf6 {[%emt 0:00:22]} 74. g7 {[%emt 0:00:59]} Ke7 {[%emt 0:00:44]} 75. Ra4 {[%emt 0:00:19]} Re1 {[%emt 0:02:18]} 76. Rh4 {[%emt 0:00:35]} Rg1 {[%emt 0:00:44]} 77. Kh7 {[%emt 0:00:10]} Kf7 {[%emt 0:00:36]} 78. Rf4+ {[%emt 0:00:08]} Ke7 {[%emt 0:00:16]} 79. g8=Q {[%emt 0:00:10]} Rh1+ {[%emt 0:00:31]} 80. Kg7 {[%emt 0:00:09]} Rg1+ {[%emt 0:00:08]} 81. Kh8 {[%emt 0:00:05]} Kd7 1-0

[Event "Hungarian Youth-ch II 2024"]
[Site "Szolnok"]
[Date "2024.04.03"]
[Round "4.5"]
[White "Wang, Luomeng"]
[Black "Horvath, Adel"]
[Result "0-1"]
[ECO "D71"]
[WhiteElo "1797"]
[BlackElo "1681"]
[Annotator "NA RC"]
[PlyCount "66"]
[EventDate "2024.03.31"]
[EventType "swiss"]
[EventCountry "HUN"]
[SourceTitle "playchess.com"]
[Source "ChessBase"]
[SourceQuality "1"]
[TimeControl "5400+30"]

1. d4 {[%emt 0:00:03]} Nf6 {[%emt 0:00:06]} 2. c4 {[%emt 0:00:08]} g6 {[%emt 0:00:12]} 3. g3 {[%emt 0:00:08]} Bg7 {[%emt 0:00:18]} 4. Bg2 {[%emt 0:00:22]} O-O {[%emt 0:00:15]} 5. Nf3 {[%emt 0:00:26]} d6 {[%emt 0:00:14]} 6. O-O {[%emt 0:00:44]} c6 {[%emt 0:00:06]} 7. Nc3 {[%emt 0:00:46]} Qb6 {[%emt 0:00:26]} 8. b3 {[%emt 0:01:27]} e5 {[%emt 0:00:23]} 9. dxe5 {[%emt 0:02:24]} dxe5 {[%emt 0:00:07]} 10. e4 {[%emt 0:02:09]} Re8 {[%emt 0:01:51]} 11. Bb2 {[%emt 0:01:59]} Bg4 {[%emt 0:05:21]} 12. Qc2 {[%emt 0:01:29]} Bxf3 {[%emt 0:01:41]} 13. Bxf3 {[%emt 0:00:34]} Na6 {[%emt 0:00:25]} 14. a3 {[%emt 0:02:53]} Nc5 {[%emt 0:05:44]} 15. b4 {[%emt 0:00:42]} Ne6 {[%emt 0:00:33]} 16. Ne2 {[%emt 0:05:36]} Rad8 {[%emt 0:04:40]} 17. Rad1 {[%emt 0:01:42]} Qc7 {[%emt 0:13:33]} 18. c5 {[%emt 0:08:19]} b6 {[%emt 0:12:49]} 19. cxb6 {[%emt 0:03:03]} axb6 {[%emt 0:00:15]} 20. Bg2 {[%emt 0:05:59]} Rxd1 {[%emt 0:09:21]} 21. Rxd1 {[%emt 0:00:46]} Rd8 {[%emt 0:00:46]} 22. Rxd8+ {[%emt 0:02:23]} Nxd8 {[%emt 0:00:09]} 23. a4 {[%emt 0:11:12]} Ne6 {[%emt 0:03:57]} 24. Qc4 {[%emt 0:06:47]} c5 {[%emt 0:15:20]} 25. b5 {[%emt 0:04:19]} Qd6 {[%emt 0:00:50]} 26. h4 {[%emt 0:10:07]} Qd1+ {[%emt 0:02:30]} 27. Bf1 {[%emt 0:00:40]} Nd4 {[%emt 0:06:47]} 28. Bxd4 {[%emt 0:01:57]} exd4 {[%emt 0:00:07]} 29. e5 {[%emt 0:02:43]} Ng4 {[%emt 0:02:12]} 30. e6 {[%emt 0:01:12]} Qe1 {[%emt 0:02:01]} 31. exf7+ {[%emt 0:01:03]} Kf8 {[%emt 0:00:57]} 32. Kg2 {[%emt 0:00:51]} Qxf2+ {[%emt 0:00:27]} 33. Kh3 {[%emt 0:00:04]} Qxf1+ 0-1

[Event "Hungarian Youth-ch II 2024"]
[Site "Szolnok"]
[Date "2024.04.03"]
[Round "4.6"]
[White "Miko, Biborka"]
[Black "Csiszar, Vivien"]
[Result "1/2-1/2"]
[ECO "B07"]
[WhiteElo "1549"]
[BlackElo "1575"]
[Annotator "NA RC"]
[PlyCount "53"]
[EventDate "2024.03.31"]
[EventType "swiss"]
[EventCountry "HUN"]
[SourceTitle "playchess.com"]
[Source "ChessBase"]
[SourceQuality "1"]
[TimeControl "5400+30"]

1. e4 {[%emt 0:00:02]} d6 {[%emt 0:00:09]} 2. d4 {[%emt 0:00:05]} Nf6 {[%emt 0:00:12]} 3. Nc3 {[%emt 0:00:08]} e5 {[%emt 0:00:13]} 4. dxe5 {[%emt 0:01:03]} dxe5 {[%emt 0:00:24]} 5. Qxd8+ {[%emt 0:00:20]} Kxd8 {[%emt 0:00:12]} 6. Bc4 {[%emt 0:00:48]} Bb4 {[%emt 0:01:12]} 7. f3 {[%emt 0:03:12]} Ke7 {[%emt 0:03:04]} 8. Nge2 {[%emt 0:02:04]} Nc6 {[%emt 0:03:30]} 9. Bg5 {[%emt 0:04:01]} h6 {[%emt 0:04:14]} 10. Bh4 {[%emt 0:01:59]} g5 {[%emt 0:13:15]} 11. Bf2 {[%emt 0:02:54]} Rd8 {[%emt 0:01:52]} 12. a3 {[%emt 0:04:32]} Ba5 {[%emt 0:01:33]} 13. O-O {[%emt 0:04:10]} Bb6 {[%emt 0:02:28]} 14. Rad1 {[%emt 0:03:56]} Be6 {[%emt 0:01:22]} 15. Bxe6 {[%emt 0:04:35]} fxe6 {[%emt 0:02:09]} 16. Bxb6 {[%emt 0:03:28]} cxb6 {[%emt 0:02:02]} 17. Kf2 {[%emt 0:05:44]} Nh5 {[%emt 0:07:32]} 18. g3 {[%emt 0:01:56]} Nd4 {[%emt 0:05:26]} 19. Nxd4 {[%emt 0:01:05]} Rxd4 {[%emt 0:01:33]} 20. Rxd4 {[%emt 0:06:07]} exd4 {[%emt 0:00:19]} 21. Nb5 {[%emt 0:00:36]} e5 {[%emt 0:07:52]} 22. Nc7 {[%emt 0:03:38]} Rc8 {[%emt 0:00:35]} 23. Nd5+ {[%emt 0:00:06]} Ke6 {[%emt 0:00:34]} 24. c3 {[%emt 0:01:28]} Nf6 {[%emt 0:01:18]} 25. cxd4 {[%emt 0:02:37]} Nxd5 {[%emt 0:05:39]} 26. exd5+ {[%emt 0:00:42]} Kxd5 {[%emt 0:00:20]} 27. dxe5 {[%emt 0:01:58]} 1/2-1/2

[Event "Hungarian Youth-ch II 2024"]
[Site "Szolnok"]
[Date "2024.04.03"]
[Round "4.7"]
[White "Vadkerti, Anna"]
[Black "Vasarhelyi, Szurina"]
[Result "1/2-1/2"]
[ECO "C64"]
[WhiteElo "1502"]
[BlackElo "1446"]
[Annotator "NA RC"]
[PlyCount "111"]
[EventDate "2024.03.31"]
[EventType "swiss"]
[EventCountry "HUN"]
[SourceTitle "playchess.com"]
[Source "ChessBase"]
[SourceQuality "1"]
[TimeControl "5400+30"]

1. e4 {[%emt 0:00:02]} e5 {[%emt 0:00:02]} 2. Nf3 {[%emt 0:00:08]} Nc6 {[%emt 0:00:07]} 3. Bb5 {[%emt 0:00:06]} Bc5 {[%emt 0:00:23]} 4. O-O {[%emt 0:00:10]} d6 {[%emt 0:00:28]} 5. d4 {[%emt 0:00:14]} exd4 {[%emt 0:02:11]} 6. Nxd4 {[%emt 0:00:12]} Nge7 {[%emt 0:02:59]} 7. Nxc6 {[%emt 0:02:53]} Nxc6 {[%emt 0:01:45]} 8. Nc3 {[%emt 0:02:56]} O-O {[%emt 0:02:12]} 9. Bf4 {[%emt 0:03:42]} Ne5 {[%emt 0:03:28]} 10. Bxe5 {[%emt 0:03:20]} dxe5 {[%emt 0:00:20]} 11. Qh5 {[%emt 0:01:44]} Bd6 {[%emt 0:06:44]} 12. Rad1 {[%emt 0:05:13]} c6 {[%emt 0:06:10]} 13. Bc4 {[%emt 0:02:02]} Qf6 {[%emt 0:05:11]} 14. Rd3 {[%emt 0:03:18]} b5 {[%emt 0:03:52]} 15. Rf3 {[%emt 0:03:55]} Qg6 {[%emt 0:03:53]} 16. Qxg6 {[%emt 0:02:09]} hxg6 {[%emt 0:00:28]} 17. Bb3 {[%emt 0:00:57]} Ba6 {[%emt 0:04:38]} 18. Rd1 {[%emt 0:00:53]} Rad8 {[%emt 0:01:49]} 19. a3 {[%emt 0:01:48]} Bc8 {[%emt 0:05:07]} 20. Rg3 {[%emt 0:03:23]} Kh7 {[%emt 0:06:23]} 21. Rdd3 {[%emt 0:01:47]} Be7 {[%emt 0:05:02]} 22. Rxd8 {[%emt 0:03:55]} Bxd8 {[%emt 0:00:19]} 23. Rd3 {[%emt 0:01:04]} Bc7 {[%emt 0:07:26]} 24. Rf3 {[%emt 0:04:01]} f6 {[%emt 0:01:57]} 25. h3 {[%emt 0:05:11]} Rd8 {[%emt 0:01:15]} 26. Rg3 {[%emt 0:03:34]} Rd2 {[%emt 0:02:52]} 27. Rd3 {[%emt 0:00:47]} Rxd3 {[%emt 0:00:27]} 28. cxd3 {[%emt 0:00:08]} Ba5 {[%emt 0:01:17]} 29. Bf7 {[%emt 0:01:12]} Ba6 {[%emt 0:00:58]} 30. Be8 {[%emt 0:00:34]} Bxc3 {[%emt 0:00:58]} 31. bxc3 {[%emt 0:00:16]} c5 {[%emt 0:00:14]} 32. f3 {[%emt 0:01:43]} b4 {[%emt 0:01:11]} 33. axb4 {[%emt 0:00:17]} cxb4 {[%emt 0:00:12]} 34. cxb4 {[%emt 0:00:09]} Bxd3 {[%emt 0:00:14]} 35. Kf2 {[%emt 0:01:24]} f5 {[%emt 0:00:31]} 36. Ke3 {[%emt 0:01:48]} Bc4 {[%emt 0:02:17]} 37. g3 {[%emt 0:02:54]} Kh6 {[%emt 0:02:27]} 38. h4 {[%emt 0:01:14]} a6 {[%emt 0:02:14]} 39. Bd7 {[%emt 0:01:48]} g5 {[%emt 0:04:13]} 40. hxg5+ {[%emt 0:00:45]} Kxg5 {[%emt 0:00:14]} 41. Bxf5 {[%emt 0:00:25]} Kf6 {[%emt 0:01:18]} 42. Bh3 {[%emt 0:03:58]} g5 {[%emt 0:00:31]} 43. Kf2 {[%emt 0:00:27]} Ke7 {[%emt 0:00:15]} 44. Bf1 {[%emt 0:00:20]} Bxf1 {[%emt 0:00:43]} 45. Kxf1 {[%emt 0:00:10]} Kd6 {[%emt 0:00:21]} 46. Ke2 {[%emt 0:00:07]} Kc6 {[%emt 0:00:49]} 47. Kd3 {[%emt 0:00:08]} Kd6 {[%emt 0:00:49]} 48. g4 {[%emt 0:02:16]} Kc7 {[%emt 0:00:35]} 49. Kc3 {[%emt 0:00:26]} Kb6 {[%emt 0:00:25]} 50. Kb2 {[%emt 0:02:48]} Kc6 {[%emt 0:00:42]} 51. Ka3 {[%emt 0:00:17]} Kb7 {[%emt 0:00:39]} 52. Kb2 {[%emt 0:01:05]} Kb6 {[%emt 0:00:23]} 53. Ka2 {[%emt 0:00:22]} Kc6 {[%emt 0:00:18]} 54. Kb3 {[%emt 0:00:25]} Kb7 {[%emt 0:00:48]} 55. Kc4 {[%emt 0:00:27]} Kc6 {[%emt 0:00:13]} 56. Kb3 {[%emt 0:00:22]} 1/2-1/2